fUSD/lending_fUSD_20260622
["ID","MTS","AMOUNT","RATE_DAILY","PERIOD"]
[426054763,1782131558000,-834.64,0.00030136,2]
[426054780,1782131558000,-500.0,0.00030136,2]
[426054758,1782131558000,-500.0,0.00030136,2]
[426054760,1782131558000,-666.78,0.00030136,2]
[426054730,1782131558000,-500.0,0.00030136,2]
[426054731,1782131558000,-500.0,0.00030136,2]
[426054736,1782131558000,-500.0,0.00030136,2]
[426054733,1782131558000,-500.0,0.00030136,2]
[426054734,1782131558000,-856.58,0.00030136,2]
[426054732,1782131558000,-500.0,0.00030136,2]
[426054738,1782131558000,-584.59,0.00030136,2]
[426054739,1782131558000,-608.59,0.00030136,2]
[426054740,1782131558000,-500.0,0.00030136,2]
[426054741,1782131558000,-500.0,0.00030136,2]
[426054743,1782131558000,-500.0,0.00030136,2]
[426054753,1782131558000,-403.24544192,0.00030136,2]
[426054737,1782131558000,-500.0,0.00030136,2]
[426054744,1782131558000,-500.0,0.00030136,2]
[426054757,1782131558000,-500.0,0.00030136,2]
[426054746,1782131558000,-936.99,0.00030136,2]
[426054759,1782131558000,-500.0,0.00030136,2]
[426054749,1782131558000,-1046.3,0.00030136,2]
[426054751,1782131558000,-670.91,0.00030136,2]
[426054750,1782131558000,-786.59,0.00030136,2]
[426054755,1782131558000,-718.0,0.00030136,2]
[426054747,1782131558000,-500.0,0.00030136,2]
[426054748,1782131558000,-500.0,0.00030136,2]
[426054754,1782131558000,-554.01,0.00030136,2]
[426054745,1782131558000,-1501.08,0.00030136,2]
[426054742,1782131558000,-523.74,0.00030136,2]
[426054752,1782131558000,-540.55,0.00030136,2]
[426054812,1782131559000,-500.0,0.00030136,2]
[426054817,1782131559000,-873.39,0.00030136,2]
[426054813,1782131559000,-758.34,0.00030136,2]
[426054810,1782131559000,-500.0,0.00030136,2]
[426054816,1782131559000,-940.86,0.00030136,2]
[426054826,1782131559000,-500.0,0.00030136,2]
[426054815,1782131559000,-500.0,0.00030136,2]
[426054819,1782131559000,-446.24,0.00030136,2]
[426054822,1782131559000,-1443.16,0.00030136,2]
[426054824,1782131559000,-600.74,0.00030136,2]
[426054820,1782131559000,-500.0,0.00030136,2]
[426054823,1782131559000,-500.0,0.00030136,2]
[426054825,1782131559000,-3639.77,0.00030136,2]
[426054821,1782131559000,-784.71,0.00030136,2]
[426054827,1782131559000,-1050.73,0.00030136,2]
[426054828,1782131559000,-636.07,0.00030136,2]
[426054830,1782131559000,-500.0,0.00030136,2]
[426054806,1782131559000,-869.96,0.00030136,2]
[426054818,1782131559000,-500.0,0.00030136,2]
[426054809,1782131559000,-635.95,0.00030136,2]
[426054798,1782131559000,-500.0,0.00030136,2]
[426054807,1782131559000,-500.0,0.00030136,2]
[426054788,1782131559000,-239.39398893,0.00030136,2]
[426054790,1782131559000,-577.94,0.00030136,2]
[426054789,1782131559000,-1069.93,0.00030136,2]
[426054791,1782131559000,-788.02,0.00030136,2]
[426054796,1782131559000,-3364.63,0.00030136,2]
[426054793,1782131559000,-500.0,0.00030136,2]
[426054799,1782131559000,-879.63,0.00030136,2]
[426054795,1782131559000,-689.12,0.00030136,2]
[426054792,1782131559000,-521.74,0.00030136,2]
[426054801,1782131559000,-4029.46,0.00030136,2]
[426054794,1782131559000,-740.41,0.00030136,2]
[426054800,1782131559000,-500.0,0.00030136,2]
[426054797,1782131559000,-500.0,0.00030136,2]
[426054802,1782131559000,-500.0,0.00030136,2]
[426054803,1782131559000,-500.0,0.00030136,2]
[426054805,1782131559000,-739.67,0.00030136,2]
[426054811,1782131559000,-501.26,0.00030136,2]
[426054808,1782131559000,-500.0,0.00030136,2]
[426054814,1782131559000,-500.0,0.00030136,2]
[426054804,1782131559000,-500.0,0.00030136,2]
[426054831,1782131559000,-700.32,0.00030136,2]
[426054829,1782131559000,-510.38,0.00030136,2]
[426054835,1782131559000,-526.09,0.00030136,2]
[426054854,1782131559000,-571.32,0.00030136,2]
[426054858,1782131559000,-739.97,0.00030136,2]
[426054860,1782131559000,-500.0,0.00030136,2]
[426054859,1782131559000,-559.62,0.00030136,2]
[426054861,1782131559000,-500.0,0.00030136,2]
[426054862,1782131559000,-500.0,0.00030136,2]
[426054865,1782131559000,-500.0,0.00030136,2]
[426054866,1782131559000,-739.97,0.00030136,2]
[426054856,1782131559000,-700.09,0.00030136,2]
[426054867,1782131559000,-3267.88,0.00030136,2]
[426054863,1782131559000,-303.56417185,0.00030136,2]
[426054869,1782131559000,-500.0,0.00030136,2]
[426054871,1782131559000,-905.07,0.00030136,2]
[426054870,1782131559000,-500.0,0.00030136,2]
[426054873,1782131559000,-500.0,0.00030136,2]
[426054874,1782131559000,-558.4,0.00030136,2]
[426054872,1782131559000,-816.43,0.00030136,2]
[426054832,1782131559000,-500.0,0.00030136,2]
[426054864,1782131559000,-500.0,0.00030136,2]
[426054855,1782131559000,-500.0,0.00030136,2]
[426054868,1782131559000,-500.0,0.00030136,2]
[426054857,1782131559000,-562.61,0.00030136,2]
[426054836,1782131559000,-541.49,0.00030136,2]
[426054851,1782131559000,-928.29,0.00030136,2]
[426054833,1782131559000,-500.0,0.00030136,2]
[426054837,1782131559000,-986.53,0.00030136,2]
[426054834,1782131559000,-945.27,0.00030136,2]
[426054847,1782131559000,-500.0,0.00030136,2]
[426054838,1782131559000,-590.33,0.00030136,2]
[426054842,1782131559000,-694.68,0.00030136,2]
[426054841,1782131559000,-1014.22,0.00030136,2]
[426054846,1782131559000,-696.96,0.00030136,2]
[426054840,1782131559000,-500.0,0.00030136,2]
[426054844,1782131559000,-500.0,0.00030136,2]
[426054848,1782131559000,-846.46,0.00030136,2]
[426054845,1782131559000,-243.12,0.00030136,2]
[426054843,1782131559000,-249.7771636,0.00030136,2]
[426054849,1782131559000,-500.0,0.00030136,2]
[426054853,1782131559000,-500.0,0.00030136,2]
[426054839,1782131559000,-396.95244497,0.00030136,2]
[426054852,1782131559000,-500.0,0.00030136,2]
[426054850,1782131559000,-629.8583744,0.00030136,2]
[426054916,1782131560000,-500.0,0.00030136,2]
[426054908,1782131560000,-546.59967197,0.00030136,2]
[426054906,1782131560000,-733.03,0.00030136,2]
[426054910,1782131560000,-500.0,0.00030136,2]
[426054905,1782131560000,-2693.07,0.00030136,2]
[426054909,1782131560000,-566.57,0.00030136,2]
[426054904,1782131560000,-500.0,0.00030136,2]
[426054902,1782131560000,-542.05,0.00030136,2]
[426054915,1782131560000,-2103.48,0.00030136,2]
[426054903,1782131560000,-500.0,0.00030136,2]
[426054907,1782131560000,-861.51,0.00030136,2]
[426054917,1782131560000,-500.0,0.00030136,2]
[426054935,1782131560000,-699.61,0.00030136,2]
[426054918,1782131560000,-500.0,0.00030136,2]
[426054919,1782131560000,-500.0,0.00030136,2]
[426054914,1782131560000,-593.89,0.00030136,2]
[426054921,1782131560000,-500.0,0.00030136,2]
[426054920,1782131560000,-500.0,0.00030136,2]
[426054922,1782131560000,-500.0,0.00030136,2]
[426054925,1782131560000,-785.53,0.00030136,2]
[426054924,1782131560000,-2746.21,0.00030136,2]
[426054926,1782131560000,-500.0,0.00030136,2]
[426054933,1782131560000,-500.0,0.00030136,2]
[426054911,1782131560000,-1000.0,0.00030136,2]
[426054913,1782131560000,-804.78,0.00030136,2]
[426054912,1782131560000,-312.37979544,0.00030136,2]
[426054883,1782131560000,-1075.88,0.00030136,2]
[426054899,1782131560000,-500.0,0.00030136,2]
[426054876,1782131560000,-500.0,0.00030136,2]
[426054875,1782131560000,-500.0,0.00030136,2]
[426054879,1782131560000,-1369.37,0.00030136,2]
[426054877,1782131560000,-1352.1,0.00030136,2]
[426054878,1782131560000,-827.96,0.00030136,2]
[426054881,1782131560000,-500.0,0.00030136,2]
[426054928,1782131560000,-1706.4,0.00030136,2]
[426054888,1782131560000,-500.0,0.00030136,2]
[426054884,1782131560000,-806.98,0.00030136,2]
[426054886,1782131560000,-500.0,0.00030136,2]
[426054882,1782131560000,-470.72796131,0.00030136,2]
[426054885,1782131560000,-500.0,0.00030136,2]
[426054889,1782131560000,-3183.96,0.00030136,2]
[426054880,1782131560000,-500.0,0.00030136,2]
[426054887,1782131560000,-500.0,0.00030136,2]
[426054890,1782131560000,-519.81,0.00030136,2]
[426054892,1782131560000,-500.0,0.00030136,2]
[426054891,1782131560000,-500.0,0.00030136,2]
[426054897,1782131560000,-500.0,0.00030136,2]
[426054898,1782131560000,-500.0,0.00030136,2]
[426054901,1782131560000,-500.0,0.00030136,2]
[426054895,1782131560000,-596.6,0.00030136,2]
[426054893,1782131560000,-500.0,0.00030136,2]
[426054894,1782131560000,-500.0,0.00030136,2]
[426054900,1782131560000,-512.67,0.00030136,2]
[426054896,1782131560000,-626.46,0.00030136,2]
[426054932,1782131560000,-830.91,0.00030136,2]
[426054923,1782131560000,-554.28,0.00030136,2]
[426054930,1782131560000,-626.49,0.00030136,2]
[426054961,1782131560000,-3395.17,0.00030136,2]
[426054960,1782131560000,-500.0,0.00030136,2]
[426054959,1782131560000,-500.0,0.00030136,2]
[426054968,1782131560000,-427.2385323,0.00030136,2]
[426054964,1782131560000,-1838.48,0.00030136,2]
[426054967,1782131560000,-504.85,0.00030136,2]
[426054966,1782131560000,-711.86,0.00030136,2]
[426054965,1782131560000,-455.05,0.00030136,2]
[426054979,1782131560000,-285.85,0.00030136,30]
[426054971,1782131560000,-500.0,0.00030136,2]
[426054972,1782131560000,-333.3,0.00030136,2]
[426054980,1782131560000,-11028.8,0.00030136,2]
[426054970,1782131560000,-500.0,0.00030136,2]
[426054973,1782131560000,-500.0,0.00030136,2]
[426054975,1782131560000,-6186.73,0.00030136,2]
[426054978,1782131560000,-2940.44,0.00030136,2]
[426054974,1782131560000,-4341.82,0.00030136,2]
[426054977,1782131560000,-4113.41,0.00030136,2]
[426054976,1782131560000,-500.0,0.00030136,2]
[426054985,1782131560000,-1204.89,0.00030136,2]
[426054983,1782131560000,-592.28155271,0.00030136,2]
[426054986,1782131560000,-227.75,0.00030136,2]
[426054982,1782131560000,-847.85,0.00030136,2]
[426054984,1782131560000,-5138.93,0.00030136,2]
[426054927,1782131560000,-698.47,0.00030136,2]
[426054969,1782131560000,-500.0,0.00030136,2]
[426054963,1782131560000,-695.59,0.00030136,2]
[426054981,1782131560000,-616.23,0.00030136,2]
[426054958,1782131560000,-248.08,0.00030136,2]
[426054931,1782131560000,-585.33,0.00030136,2]
[426054962,1782131560000,-1362.17,0.00030136,2]
[426054934,1782131560000,-500.0,0.00030136,2]
[426054929,1782131560000,-1155.68,0.00030136,2]
[426054946,1782131560000,-500.0,0.00030136,2]
[426054941,1782131560000,-1302.85,0.00030136,2]
[426054940,1782131560000,-500.0,0.00030136,2]
[426054943,1782131560000,-3549.98,0.00030136,2]
[426054936,1782131560000,-1326.5,0.00030136,2]
[426054944,1782131560000,-636.95,0.00030136,2]
[426054939,1782131560000,-604.11,0.00030136,2]
[426054945,1782131560000,-500.0,0.00030136,2]
[426054938,1782131560000,-500.0,0.00030136,2]
[426054937,1782131560000,-500.0,0.00030136,2]
[426054942,1782131560000,-553.22,0.00030136,2]
[426054955,1782131560000,-500.0,0.00030136,2]
[426054952,1782131560000,-546.18,0.00030136,2]
[426054957,1782131560000,-1496.54,0.00030136,2]
[426054954,1782131560000,-398.02752345,0.00030136,2]
[426054953,1782131560000,-500.0,0.00030136,2]
[426054956,1782131560000,-1271.92,0.00030136,2]
[426054951,1782131560000,-500.0,0.00030136,2]
[426054950,1782131560000,-519.8,0.00030136,2]
[426054947,1782131560000,-784.56,0.00030136,2]
[426054948,1782131560000,-1158.24,0.00030136,2]
[426054949,1782131560000,-567.35,0.00030136,2]
[426055030,1782131561000,-1285.11,0.00030136,30]
[426055022,1782131561000,-7004.08,0.00030136,2]
[426055023,1782131561000,-490.85,0.00030136,2]
[426055021,1782131561000,-500.0,0.00030136,2]
[426055029,1782131561000,-500.0,0.00030136,2]
[426055020,1782131561000,-5976.83,0.00030136,2]
[426055027,1782131561000,-658.07,0.00030136,2]
[426055024,1782131561000,-500.0,0.00030136,2]
[426055026,1782131561000,-355.68,0.00030136,2]
[426055028,1782131561000,-909.43,0.00030136,2]
[426055031,1782131561000,-500.0,0.00030136,2]
[426055025,1782131561000,-9672.86,0.00030136,2]
[426055033,1782131561000,-8639.58,0.00030136,2]
[426055044,1782131561000,-5625.93,0.00030136,2]
[426055043,1782131561000,-645.5,0.00030136,2]
[426055035,1782131561000,-583.49,0.00030136,2]
[426055037,1782131561000,-8686.62,0.00030136,2]
[426055032,1782131561000,-1002.58,0.00030136,2]
[426055039,1782131561000,-180.62712884,0.00030136,2]
[426055042,1782131561000,-500.0,0.00030136,2]
[426055036,1782131561000,-499.94536427,0.00030136,2]
[426055040,1782131561000,-500.0,0.00030136,2]
[426055038,1782131561000,-919.77,0.00030136,2]
[426055041,1782131561000,-500.0,0.00030136,2]
[426055045,1782131561000,-928.76,0.00030136,30]
[426055053,1782131561000,-500.0,0.00030136,2]
[426055019,1782131561000,-6597.51,0.00030136,2]
[426055034,1782131561000,-4376.06,0.00030136,2]
[426055018,1782131561000,-4492.09,0.00030136,2]
[426054990,1782131561000,-2000.0,0.00030136,2]
[426055015,1782131561000,-6843.28,0.00030136,2]
[426054989,1782131561000,-500.0,0.00030136,2]
[426054988,1782131561000,-500.0,0.00030136,2]
[426054987,1782131561000,-849.12,0.00030136,2]
[426054992,1782131561000,-500.0,0.00030136,2]
[426054991,1782131561000,-8197.77,0.00030136,2]
[426054993,1782131561000,-357.82,0.00030136,2]
[426054996,1782131561000,-570.0,0.00030136,2]
[426054994,1782131561000,-3373.56,0.00030136,2]
[426055000,1782131561000,-283.36,0.00030136,2]
[426054998,1782131561000,-685.72,0.00030136,2]
[426055004,1782131561000,-500.0,0.00030136,2]
[426055001,1782131561000,-557.86,0.00030136,2]
[426055002,1782131561000,-591.59,0.00030136,2]
[426055017,1782131561000,-1169.7,0.00030136,2]
[426055003,1782131561000,-1010.5,0.00030136,2]
[426054995,1782131561000,-687.7,0.00030136,2]
[426054997,1782131561000,-713.2,0.00030136,2]
[426055005,1782131561000,-500.0,0.00030136,2]
[426055006,1782131561000,-1413.15,0.00030136,2]
[426055008,1782131561000,-657.57,0.00030136,2]
[426055054,1782131561000,-265.92492047,0.00030136,2]
[426055009,1782131561000,-505.25,0.00030136,2]
[426055010,1782131561000,-500.0,0.00030136,2]
[426055011,1782131561000,-500.0,0.00030136,2]
[426055012,1782131561000,-500.0,0.00030136,2]
[426055014,1782131561000,-500.0,0.00030136,2]
[426055013,1782131561000,-500.0,0.00030136,2]
[426055016,1782131561000,-4227.56,0.00030136,2]
[426054999,1782131561000,-500.0,0.00030136,2]
[426055055,1782131561000,-729.92,0.00030136,2]
[426055007,1782131561000,-7121.05,0.00030136,2]
[426055048,1782131561000,-844.33,0.00030136,2]
[426055085,1782131561000,-150.0,0.00030137,2]
[426055084,1782131561000,-984.2,0.00030136,2]
[426055087,1782131561000,-183.4221071,0.00030137,2]
[426055090,1782131561000,-1000.0,0.00030137,3]
[426055088,1782131561000,-1000.0,0.00030137,3]
[426055089,1782131561000,-1000.0,0.00030137,3]
[426055092,1782131561000,-1000.0,0.00030137,3]
[426055091,1782131561000,-1000.0,0.00030137,3]
[426055083,1782131561000,-500.0,0.00030136,2]
[426055093,1782131561000,-1000.0,0.00030137,3]
[426055094,1782131561000,-1000.0,0.00030137,3]
[426055095,1782131561000,-1000.0,0.00030137,3]
[426055106,1782131561000,-629.0,0.00030137,29]
[426055086,1782131561000,-871.9,0.00030137,2]
[426055099,1782131561000,-1000.0,0.00030137,3]
[426055097,1782131561000,-1000.0,0.00030137,3]
[426055096,1782131561000,-1000.0,0.00030137,3]
[426055105,1782131561000,-629.0,0.00030137,29]
[426055103,1782131561000,-611.0,0.00030137,119]
[426055104,1782131561000,-611.0,0.00030137,119]
[426055098,1782131561000,-1000.0,0.00030137,3]
[426055100,1782131561000,-519.882081,0.00030137,3]
[426055102,1782131561000,-611.0,0.00030137,119]
[426055101,1782131561000,-611.0,0.00030137,119]
[426055108,1782131561000,-659.0,0.00030137,59]
[426055110,1782131561000,-659.0,0.00030137,59]
[426055111,1782131561000,-689.0,0.00030137,89]
[426055046,1782131561000,-500.0,0.00030136,2]
[426055107,1782131561000,-629.0,0.00030137,29]
[426055082,1782131561000,-500.0,0.00030136,2]
[426055109,1782131561000,-659.0,0.00030137,59]
[426055076,1782131561000,-879.74,0.00030136,2]
[426055051,1782131561000,-1087.5,0.00030136,2]
[426055052,1782131561000,-912.76,0.00030136,2]
[426055049,1782131561000,-500.0,0.00030136,2]
[426055050,1782131561000,-500.0,0.00030136,2]
[426055047,1782131561000,-775.18,0.00030136,2]
[426055056,1782131561000,-2905.9,0.00030136,2]
[426055058,1782131561000,-4175.97,0.00030136,2]
[426055057,1782131561000,-2044.4,0.00030136,2]
[426055078,1782131561000,-1013.21,0.00030136,2]
[426055061,1782131561000,-513.61,0.00030136,2]
[426055066,1782131561000,-781.2,0.00030136,2]
[426055059,1782131561000,-500.0,0.00030136,2]
[426055063,1782131561000,-500.0,0.00030136,2]
[426055060,1782131561000,-500.0,0.00030136,2]
[426055065,1782131561000,-500.0,0.00030136,2]
[426055064,1782131561000,-895.47,0.00030136,2]
[426055077,1782131561000,-500.0,0.00030136,2]
[426055062,1782131561000,-500.0,0.00030136,2]
[426055079,1782131561000,-948.85,0.00030136,2]
[426055073,1782131561000,-805.85,0.00030136,2]
[426055074,1782131561000,-500.0,0.00030136,2]
[426055071,1782131561000,-537.51,0.00030136,2]
[426055075,1782131561000,-500.0,0.00030136,2]
[426055072,1782131561000,-777.53,0.00030136,2]
[426055069,1782131561000,-1281.85,0.00030136,2]
[426055080,1782131561000,-500.0,0.00030136,2]
[426055070,1782131561000,-500.0,0.00030136,2]
[426055068,1782131561000,-500.0,0.00030136,2]
[426055067,1782131561000,-554.0,0.00030136,2]
[426055081,1782131561000,-500.0,0.00030136,2]
[426055151,1782131562000,-530.352991,0.00030137,2]
[426055152,1782131562000,-10000.0,0.00030137,120]
[426055149,1782131562000,-228.55605509,0.00030137,120]
[426055147,1782131562000,-500.0,0.00030137,3]
[426055150,1782131562000,-251.0,0.00030137,2]
[426055145,1782131562000,-2352.49235595,0.00030137,120]
[426055146,1782131562000,-454.46086338,0.00030137,120]
[426055144,1782131562000,-500.0,0.00030137,3]
[426055155,1782131562000,-10000.0,0.00030137,120]
[426055154,1782131562000,-5078.0,0.00030137,120]
[426055153,1782131562000,-10000.0,0.00030137,120]
[426055148,1782131562000,-187.74044974,0.00030137,30]
[426055156,1782131562000,-10000.0,0.00030137,120]
[426055170,1782131562000,-41126.83075,0.00030149,2]
[426055159,1782131562000,-10000.0,0.00030137,120]
[426055162,1782131562000,-1000.0,0.00030137,120]
[426055166,1782131562000,-803.53,0.00030137,7]
[426055158,1782131562000,-10000.0,0.00030137,120]
[426055165,1782131562000,-2110.0,0.00030137,2]
[426055167,1782131562000,-1800.19,0.00030138,7]
[426055163,1782131562000,-344.73,0.00030137,120]
[426055164,1782131562000,-405.06,0.00030137,120]
[426055168,1782131562000,-124508.9575093,0.00030147,2]
[426055160,1782131562000,-5000.0,0.00030137,120]
[426055157,1782131562000,-10000.0,0.00030137,120]
[426055172,1782131562000,-1360.0,0.00030184,2]
[426055141,1782131562000,-500.0,0.00030137,3]
[426055161,1782131562000,-11161.0,0.00030137,120]
[426055143,1782131562000,-500.0,0.00030137,3]
[426055122,1782131562000,-600.0,0.00030137,115]
[426055140,1782131562000,-500.0,0.00030137,3]
[426055179,1782131562000,-666.57,0.000302,2]
[426055115,1782131562000,-689.0,0.00030137,89]
[426055116,1782131562000,-600.0,0.00030137,118]
[426055114,1782131562000,-689.0,0.00030137,89]
[426055119,1782131562000,-600.0,0.00030137,118]
[426055112,1782131562000,-689.0,0.00030137,89]
[426055118,1782131562000,-600.0,0.00030137,118]
[426055117,1782131562000,-600.0,0.00030137,118]
[426055113,1782131562000,-689.0,0.00030137,89]
[426055127,1782131562000,-3000.0,0.00030137,120]
[426055129,1782131562000,-300.0,0.00030137,120]
[426055121,1782131562000,-600.0,0.00030137,115]
[426055124,1782131562000,-241.0,0.00030137,120]
[426055138,1782131562000,-500.0,0.00030137,3]
[426055123,1782131562000,-600.0,0.00030137,115]
[426055131,1782131562000,-250.0,0.00030137,120]
[426055130,1782131562000,-250.0,0.00030137,120]
[426055126,1782131562000,-10000.0,0.00030137,120]
[426055125,1782131562000,-10000.0,0.00030137,120]
[426055128,1782131562000,-251.24,0.00030137,15]
[426055132,1782131562000,-250.0,0.00030137,120]
[426055136,1782131562000,-563.28638989,0.00030137,2]
[426055134,1782131562000,-187.76212996,0.00030137,2]
[426055133,1782131562000,-238.08309121,0.00030137,2]
[426055137,1782131562000,-698.81774615,0.00030137,120]
[426055135,1782131562000,-375.52425993,0.00030137,2]
[426055142,1782131562000,-500.0,0.00030137,3]
[426055139,1782131562000,-500.0,0.00030137,3]
[426055120,1782131562000,-600.0,0.00030137,115]
[426055171,1782131562000,-1276.0,0.00030184,2]
[426055175,1782131562000,-15855.76570496,0.000302,2]
[426055180,1782131562000,-1026.81,0.000302,30]
[426055210,1782131562000,-573.55,0.00030328,2]
[426055213,1782131562000,-644.33,0.00030329,2]
[426055207,1782131562000,-5800.0,0.00030317,2]
[426055206,1782131562000,-5800.0,0.00030308,2]
[426055209,1782131562000,-151.0,0.00030328,2]
[426055218,1782131562000,-151.0,0.00030341,2]
[426055217,1782131562000,-151.0,0.00030341,2]
[426055214,1782131562000,-186.55284649,0.00030333,7]
[426055212,1782131562000,-644.33,0.00030328,2]
[426055211,1782131562000,-152.77,0.00030328,2]
[426055216,1782131562000,-5800.0,0.00030334,2]
[426055215,1782131562000,-10000.0,0.00030333,2]
[426055230,1782131562000,-5800.0,0.00030351,2]
[426055208,1782131562000,-5800.0,0.00030325,2]
[426055220,1782131562000,-151.0,0.00030341,2]
[426055221,1782131562000,-151.0,0.00030341,2]
[426055222,1782131562000,-5800.0,0.00030342,2]
[426055231,1782131562000,-289.64,0.00030351,2]
[426055226,1782131562000,-643.91,0.00030347,2]
[426055219,1782131562000,-151.0,0.00030341,2]
[426055225,1782131562000,-573.66,0.00030347,2]
[426055227,1782131562000,-396.28,0.00030347,2]
[426055224,1782131562000,-644.59,0.00030346,2]
[426055229,1782131562000,-184.48,0.00030347,2]
[426055228,1782131562000,-151.0,0.00030347,2]
[426055174,1782131562000,-3256.27,0.000302,2]
[426055234,1782131562000,-468.0,0.00030354,5]
[426055233,1782131562000,-151.0,0.00030351,2]
[426055223,1782131562000,-396.29,0.00030346,2]
[426055200,1782131562000,-2500.0,0.0003025,2]
[426055232,1782131562000,-151.29,0.00030351,2]
[426055203,1782131562000,-1735.0,0.00030281,2]
[426055173,1782131562000,-15000.0,0.000302,2]
[426055176,1782131562000,-65712.7817479,0.000302,30]
[426055178,1782131562000,-666.72,0.000302,2]
[426055169,1782131562000,-25323.9347604,0.00030149,2]
[426055177,1782131562000,-666.72,0.000302,2]
[426055181,1782131562000,-1624.05,0.00030205,2]
[426055182,1782131562000,-544.3,0.00030239,2]
[426055201,1782131562000,-2500.0,0.0003025,2]
[426055187,1782131562000,-22500.0,0.0003025,2]
[426055189,1782131562000,-12500.0,0.0003025,2]
[426055183,1782131562000,-785.0,0.00030245,2]
[426055185,1782131562000,-12500.0,0.0003025,2]
[426055184,1782131562000,-250.0,0.00030246,7]
[426055188,1782131562000,-2500.0,0.0003025,2]
[426055190,1782131562000,-22500.0,0.0003025,2]
[426055198,1782131562000,-22500.0,0.0003025,2]
[426055186,1782131562000,-12500.0,0.0003025,2]
[426055197,1782131562000,-25000.0,0.0003025,2]
[426055202,1782131562000,-2434.0,0.00030281,2]
[426055204,1782131562000,-249.0,0.00030291,2]
[426055205,1782131562000,-15000.0,0.000303,2]
[426055199,1782131562000,-25000.0,0.0003025,2]
[426055196,1782131562000,-2500.0,0.0003025,2]
[426055193,1782131562000,-12500.0,0.0003025,2]
[426055194,1782131562000,-25000.0,0.0003025,2]
[426055192,1782131562000,-2500.0,0.0003025,2]
[426055191,1782131562000,-25000.0,0.0003025,2]
[426055195,1782131562000,-2500.0,0.0003025,2]
[426055268,1782131563000,-5000.0,0.00030408,2]
[426055272,1782131563000,-585.84,0.0003041,2]
[426055276,1782131563000,-970.83,0.0003041,2]
[426055273,1782131563000,-500.0,0.0003041,2]
[426055266,1782131563000,-5000.0,0.00030408,2]
[426055265,1782131563000,-5000.0,0.00030408,2]
[426055263,1782131563000,-15000.0,0.000304,2]
[426055271,1782131563000,-819.26,0.0003041,2]
[426055269,1782131563000,-5000.0,0.00030408,2]
[426055264,1782131563000,-5800.0,0.00030402,2]
[426055270,1782131563000,-5800.0,0.0003041,2]
[426055274,1782131563000,-500.0,0.0003041,2]
[426055289,1782131563000,-666.68,0.0003041,2]
[426055279,1782131563000,-947.67,0.0003041,2]
[426055277,1782131563000,-633.7,0.0003041,2]
[426055278,1782131563000,-513.94,0.0003041,2]
[426055281,1782131563000,-1724.88,0.0003041,2]
[426055280,1782131563000,-500.0,0.0003041,2]
[426055282,1782131563000,-500.0,0.0003041,2]
[426055283,1782131563000,-539.78,0.0003041,2]
[426055291,1782131563000,-755.16,0.0003041,2]
[426055293,1782131563000,-500.0,0.0003041,2]